[Event "December 19 Early 2023"]
[Site "https://www.chess.com"]
[Date "2023.12.19"]
[Round "4"]
[White "Liascovich, Lucas"]
[Black "Cristobal, Manuel"]
[Result "1/2-1/2"]
[Board "19"]
[TimeControl "180+1"]
[WhiteFideId "108634"]
[BlackFideId "112879"]
[WhiteElo "2455"]
[BlackElo "2244"]
[WhiteTeam "ARG"]
[BlackTeam "ARG"]
[WhiteClock "0:01:45"]
[BlackClock "0:01:41"]

1. e4 {[%clk 0:02:59]}  e5 {[%clk 0:02:58]} 2. Nf3 {[%clk 0:02:58]}  Nc6 {[%clk 0:02:58]} 3. Nc3 {[%clk 0:02:56]}  Nf6 {[%clk 0:02:58]} 4. Bb5 {[%clk 0:02:54]}  Nd4 {[%clk 0:02:55]} 5. Nxd4 {[%clk 0:02:53]}  exd4 {[%clk 0:02:54]} 6. e5 {[%clk 0:02:54]}  dxc3 {[%clk 0:02:53]} 7. exf6 {[%clk 0:02:54]}  Qxf6 {[%clk 0:02:54]} 8. Qe2+ {[%clk 0:02:52]}  Qe6 {[%clk 0:02:49]} 9. Qxe6+ {[%clk 0:02:51]}  fxe6 {[%clk 0:02:48]} 10. dxc3 {[%clk 0:02:51]}  c6 {[%clk 0:02:45]} 11. Bd3 {[%clk 0:02:43]}  d5 {[%clk 0:02:39]} 12. Bf4 {[%clk 0:02:37]}  Be7 {[%clk 0:02:28]} 13. O-O-O {[%clk 0:02:36]}  O-O {[%clk 0:02:26]} 14. Bg3 {[%clk 0:02:36]}  Bg5+ {[%clk 0:02:24]} 15. Kb1 {[%clk 0:02:35]}  Bf4 {[%clk 0:02:22]} 16. Bxf4 {[%clk 0:02:30]}  Rxf4 {[%clk 0:02:21]} 17. Rhf1 {[%clk 0:02:26]}  e5 {[%clk 0:02:19]} 18. f3 {[%clk 0:02:26]}  Bd7 {[%clk 0:02:18]} 19. Rde1 {[%clk 0:02:26]}  Re8 {[%clk 0:02:14]} 20. Kc1 {[%clk 0:02:26]}  e4 {[%clk 0:02:12]} 21. fxe4 {[%clk 0:02:26]}  Rxf1 {[%clk 0:02:12]} 22. Rxf1 {[%clk 0:02:25]}  dxe4 {[%clk 0:02:13]} 23. Bc4+ {[%clk 0:02:25]}  Be6 {[%clk 0:02:14]} 24. Bxe6+ {[%clk 0:02:24]}  Rxe6 {[%clk 0:02:15]} 25. Kd2 {[%clk 0:02:23]}  Rh6 {[%clk 0:02:13]} 26. h3 {[%clk 0:02:23]}  Rg6 {[%clk 0:02:12]} 27. Rf2 {[%clk 0:02:23]}  Rg3 {[%clk 0:02:11]} 28. Re2 {[%clk 0:02:23]}  e3+ {[%clk 0:02:09]} 29. Kd3 {[%clk 0:02:12]}  Kf7 {[%clk 0:02:07]} 30. b4 {[%clk 0:02:12]}  Ke6 {[%clk 0:02:06]} 31. Ke4 {[%clk 0:02:13]}  Kd6 {[%clk 0:02:06]} 32. Kf4 {[%clk 0:02:11]}  Rg6 {[%clk 0:02:06]} 33. Rxe3 {[%clk 0:02:11]}  Rxg2 {[%clk 0:02:05]} 34. Rd3+ {[%clk 0:02:11]}  Kc7 {[%clk 0:02:05]} 35. Re3 {[%clk 0:02:10]}  Rxc2 {[%clk 0:01:52]} 36. Re7+ {[%clk 0:02:08]}  Kb6 {[%clk 0:01:52]} 37. Rxg7 {[%clk 0:02:08]}  Rxa2 {[%clk 0:01:51]} 38. Rxh7 {[%clk 0:02:03]}  a5 {[%clk 0:01:50]} 39. bxa5+ {[%clk 0:02:03]}  Rxa5 {[%clk 0:01:49]} 40. Ke3 {[%clk 0:02:01]}  Re5+ {[%clk 0:01:46]} 41. Kd3 {[%clk 0:02:01]}  Rd5+ {[%clk 0:01:45]} 42. Kc2 {[%clk 0:02:01]}  Kc5 {[%clk 0:01:42]} 43. Rxb7 {[%clk 0:02:00]}  Rh5 {[%clk 0:01:41]} 44. Kb3 {[%clk 0:01:45]} 1/2-1/2

[Event "December 19 Early 2023"]
[Site "https://www.chess.com"]
[Date "2023.12.19"]
[Round "4"]
[White "Galchenko, Matvey"]
[Black "Truskavetsky, Alexandr"]
[Result "0-1"]
[Board "21"]
[TimeControl "180+1"]
[WhiteFideId "24175480"]
[BlackFideId "14108577"]
[WhiteElo "2424"]
[BlackElo "2210"]
[WhiteTeam "FID"]
[BlackTeam "RUS"]
[WhiteClock "0:00:02"]
[BlackClock "0:01:19"]

1. e4 {[%clk 0:03:00]}  c5 {[%clk 0:02:58]} 2. c3 {[%clk 0:02:57]}  Nf6 {[%clk 0:02:57]} 3. e5 {[%clk 0:02:57]}  Nd5 {[%clk 0:02:57]} 4. Nf3 {[%clk 0:02:58]}  d6 {[%clk 0:02:57]} 5. Bc4 {[%clk 0:02:57]}  Nb6 {[%clk 0:02:57]} 6. Bb3 {[%clk 0:02:57]}  g6 {[%clk 0:02:54]} 7. d4 {[%clk 0:02:35]}  cxd4 {[%clk 0:02:54]} 8. exd6 {[%clk 0:02:33]}  Qxd6 {[%clk 0:02:53]} 9. O-O {[%clk 0:01:58]}  Bg7 {[%clk 0:02:52]} 10. Nxd4 {[%clk 0:01:57]}  a6 {[%clk 0:02:48]} 11. Re1 {[%clk 0:01:55]}  O-O {[%clk 0:02:48]} 12. Qf3 {[%clk 0:01:53]}  e5 {[%clk 0:02:46]} 13. Nc2 {[%clk 0:01:50]}  Be6 {[%clk 0:02:43]} 14. Be3 {[%clk 0:01:47]}  N8d7 {[%clk 0:02:41]} 15. Nd2 {[%clk 0:01:28]}  f5 {[%clk 0:02:40]} 16. Rad1 {[%clk 0:01:01]}  Bxb3 {[%clk 0:02:19]} 17. Nxb3 {[%clk 0:00:58]}  Qc7 {[%clk 0:02:19]} 18. Na5 {[%clk 0:00:48]}  e4 {[%clk 0:02:19]} 19. Qh3 {[%clk 0:00:48]}  Ne5 {[%clk 0:02:15]} 20. Nb4 {[%clk 0:00:45]}  Nbc4 {[%clk 0:02:13]} 21. Nxc4 {[%clk 0:00:44]}  Qxc4 {[%clk 0:02:14]} 22. Bd4 {[%clk 0:00:40]}  Rad8 {[%clk 0:02:10]} 23. Qg3 {[%clk 0:00:36]}  Nf7 {[%clk 0:02:00]} 24. Bxg7 {[%clk 0:00:32]}  Kxg7 {[%clk 0:02:01]} 25. b3 {[%clk 0:00:24]}  Qc5 {[%clk 0:02:00]} 26. Nc2 {[%clk 0:00:23]}  Ne5 {[%clk 0:01:55]} 27. Nd4 {[%clk 0:00:21]}  Qe7 {[%clk 0:01:52]} 28. f3 {[%clk 0:00:18]}  f4 {[%clk 0:01:53]} 29. Qh3 {[%clk 0:00:16]}  e3 {[%clk 0:01:51]} 30. Ne6+ {[%clk 0:00:16]}  Kf6 {[%clk 0:01:51]} 31. Nxd8 {[%clk 0:00:13]}  Rxd8 {[%clk 0:01:52]} 32. Qh4+ {[%clk 0:00:09]}  g5 {[%clk 0:01:52]} 33. Qh6+ {[%clk 0:00:09]}  Ng6 {[%clk 0:01:53]} 34. Rxd8 {[%clk 0:00:10]}  Qxd8 {[%clk 0:01:54]} 35. h4 {[%clk 0:00:09]}  gxh4 {[%clk 0:01:53]} 36. Qxh7 {[%clk 0:00:03]}  Qd2 {[%clk 0:01:52]} 37. Ra1 {[%clk 0:00:02]}  e2 {[%clk 0:01:52]} 38. Qxb7 {[%clk 0:00:03]}  e1=Q+ {[%clk 0:01:51]} 39. Rxe1 {[%clk 0:00:04]}  Qxe1+ {[%clk 0:01:52]} 40. Kh2 {[%clk 0:00:04]}  h3 {[%clk 0:01:51]} 41. Qxa6+ {[%clk 0:00:03]}  Kg5 {[%clk 0:01:51]} 42. Qb5+ {[%clk 0:00:03]}  Kh4 {[%clk 0:01:50]} 43. gxh3 {[%clk 0:00:02]}  Qg3+ {[%clk 0:01:49]} 44. Kh1 {[%clk 0:00:02]}  Qxf3+ {[%clk 0:01:50]} 45. Kg1 {[%clk 0:00:02]}  Qg3+ {[%clk 0:01:50]} 46. Kf1 {[%clk 0:00:03]}  Qxh3+ {[%clk 0:01:51]} 47. Kg1 {[%clk 0:00:03]}  Qe3+ {[%clk 0:01:51]} 48. Kf1 {[%clk 0:00:03]}  f3 {[%clk 0:01:50]} 49. a4 {[%clk 0:00:02]}  f2 {[%clk 0:01:20]} 50. Qe2 {[%clk 0:00:02]}  Qxe2+ {[%clk 0:01:18]} 51. Kxe2 {[%clk 0:00:02]}  Kg3 {[%clk 0:01:19]} 52. a5 {[%clk 0:00:03]}  Kg2 {[%clk 0:01:19]} 53. a6 {[%clk 0:00:02]}  f1=Q+ {[%clk 0:01:19]} 0-1

[Event "December 19 Early 2023"]
[Site "https://www.chess.com"]
[Date "2023.12.19"]
[Round "4"]
[White "Szalay, Karoly"]
[Black "Ter-Sahakyan, Samvel"]
[Result "0-1"]
[Board "22"]
[TimeControl "180+1"]
[WhiteFideId "2600544"]
[BlackFideId "13302531"]
[WhiteElo "2609"]
[BlackElo "2556"]
[WhiteTeam "CAN"]
[BlackTeam "ARM"]
[WhiteClock "0:00:00"]
[BlackClock "0:00:39"]

1. e4 {[%clk 0:03:00]}  e5 {[%clk 0:03:00]} 2. Nf3 {[%clk 0:03:00]}  Nc6 {[%clk 0:03:00]} 3. Nc3 {[%clk 0:02:58]}  Nf6 {[%clk 0:02:59]} 4. Bb5 {[%clk 0:02:55]}  Nd4 {[%clk 0:02:58]} 5. Ba4 {[%clk 0:02:56]}  a5 {[%clk 0:02:37]} 6. d3 {[%clk 0:02:12]}  c6 {[%clk 0:02:33]} 7. Bb3 {[%clk 0:01:52]}  d6 {[%clk 0:02:24]} 8. h3 {[%clk 0:01:45]}  b5 {[%clk 0:02:20]} 9. a3 {[%clk 0:01:45]}  Nxb3 {[%clk 0:02:19]} 10. cxb3 {[%clk 0:01:46]}  Be7 {[%clk 0:02:14]} 11. Be3 {[%clk 0:01:45]}  O-O {[%clk 0:02:14]} 12. O-O {[%clk 0:01:45]}  Bb7 {[%clk 0:02:07]} 13. d4 {[%clk 0:01:41]}  Qb8 {[%clk 0:02:04]} 14. b4 {[%clk 0:01:10]}  axb4 {[%clk 0:02:02]} 15. axb4 {[%clk 0:01:11]}  Rxa1 {[%clk 0:02:02]} 16. Qxa1 {[%clk 0:01:11]}  Re8 {[%clk 0:01:57]} 17. Rd1 {[%clk 0:01:09]}  h6 {[%clk 0:01:51]} 18. d5 {[%clk 0:00:48]}  cxd5 {[%clk 0:01:47]} 19. exd5 {[%clk 0:00:49]}  Bc8 {[%clk 0:01:43]} 20. Qa5 {[%clk 0:00:42]}  Bd7 {[%clk 0:01:43]} 21. Bb6 {[%clk 0:00:40]}  Qb7 {[%clk 0:01:40]} 22. Ra1 {[%clk 0:00:23]}  Nxd5 {[%clk 0:01:37]} 23. Nxd5 {[%clk 0:00:23]}  Qxd5 {[%clk 0:01:37]} 24. Be3 {[%clk 0:00:23]}  Bf8 {[%clk 0:01:09]} 25. Qc7 {[%clk 0:00:15]}  Bxh3 {[%clk 0:00:58]} 26. gxh3 {[%clk 0:00:02]}  Qxf3 {[%clk 0:00:58]} 27. Qd7 {[%clk 0:00:01]}  Re6 {[%clk 0:00:58]} 28. Kh2 {[%clk 0:00:01]}  d5 {[%clk 0:00:43]} 29. Rg1 {[%clk 0:00:00]}  d4 {[%clk 0:00:39]} 0-1

[Event "December 19 Early 2023"]
[Site "https://www.chess.com"]
[Date "2023.12.19"]
[Round "4"]
[White "Parpiev, Isaak"]
[Black "Le, Tuan Minh"]
[Result "0-1"]
[Board "24"]
[TimeControl "180+1"]
[WhiteFideId "34281576"]
[BlackFideId "12401153"]
[WhiteElo "2183"]
[BlackElo "2561"]
[WhiteTeam "RUS"]
[BlackTeam "VIE"]
[WhiteClock "0:00:00"]
[BlackClock "0:00:04"]

1. e4 {[%clk 0:03:00]}  e5 {[%clk 0:02:50]} 2. Nf3 {[%clk 0:03:00]}  Nc6 {[%clk 0:02:50]} 3. Nc3 {[%clk 0:03:01]}  Nf6 {[%clk 0:02:49]} 4. a3 {[%clk 0:03:01]}  g6 {[%clk 0:02:33]} 5. Bc4 {[%clk 0:02:55]}  Bg7 {[%clk 0:02:32]} 6. d3 {[%clk 0:02:54]}  h6 {[%clk 0:02:29]} 7. h3 {[%clk 0:02:54]}  d6 {[%clk 0:02:29]} 8. Be3 {[%clk 0:02:53]}  Be6 {[%clk 0:02:24]} 9. Qd2 {[%clk 0:02:48]}  a6 {[%clk 0:02:11]} 10. Bxe6 {[%clk 0:02:40]}  fxe6 {[%clk 0:02:11]} 11. d4 {[%clk 0:02:26]}  exd4 {[%clk 0:02:10]} 12. Nxd4 {[%clk 0:02:27]}  Qd7 {[%clk 0:02:09]} 13. f3 {[%clk 0:02:21]}  Nh5 {[%clk 0:01:58]} 14. Nde2 {[%clk 0:02:14]}  Qf7 {[%clk 0:01:45]} 15. g4 {[%clk 0:02:05]}  Nf6 {[%clk 0:01:45]} 16. f4 {[%clk 0:01:57]}  O-O-O {[%clk 0:01:43]} 17. O-O-O {[%clk 0:01:50]}  Kb8 {[%clk 0:01:39]} 18. Qe1 {[%clk 0:01:45]}  Nd7 {[%clk 0:01:27]} 19. Kb1 {[%clk 0:01:34]}  Bf6 {[%clk 0:01:10]} 20. h4 {[%clk 0:01:11]}  Bg7 {[%clk 0:00:59]} 21. Qg3 {[%clk 0:01:07]}  Rhf8 {[%clk 0:00:57]} 22. Rhf1 {[%clk 0:01:03]}  Nf6 {[%clk 0:00:56]} 23. g5 {[%clk 0:00:56]}  Nh5 {[%clk 0:00:55]} 24. Qg2 {[%clk 0:00:54]}  hxg5 {[%clk 0:00:44]} 25. hxg5 {[%clk 0:00:55]}  Na5 {[%clk 0:00:38]} 26. f5 {[%clk 0:00:33]}  exf5 {[%clk 0:00:36]} 27. exf5 {[%clk 0:00:34]}  Nc4 {[%clk 0:00:35]} 28. Bc1 {[%clk 0:00:23]}  gxf5 {[%clk 0:00:35]} 29. Qh3 {[%clk 0:00:13]}  Be5 {[%clk 0:00:27]} 30. Rh1 {[%clk 0:00:13]}  Ng7 {[%clk 0:00:27]} 31. Qf3 {[%clk 0:00:12]}  f4 {[%clk 0:00:26]} 32. Ne4 {[%clk 0:00:10]}  Ne6 {[%clk 0:00:24]} 33. Rhf1 {[%clk 0:00:10]}  Qg6 {[%clk 0:00:20]} 34. Qd3 {[%clk 0:00:10]}  d5 {[%clk 0:00:20]} 35. Nf2 {[%clk 0:00:04]}  Qxg5 {[%clk 0:00:19]} 36. Qb3 {[%clk 0:00:03]}  Qf5 {[%clk 0:00:19]} 37. Nd3 {[%clk 0:00:04]}  f3 {[%clk 0:00:19]} 38. Nxe5 {[%clk 0:00:02]}  Qxe5 {[%clk 0:00:15]} 39. Nc3 {[%clk 0:00:01]}  f2 {[%clk 0:00:15]} 40. Na4 {[%clk 0:00:01]}  Nd4 {[%clk 0:00:10]} 41. Qd3 {[%clk 0:00:01]}  Nc6 {[%clk 0:00:10]} 42. Nc3 {[%clk 0:00:02]}  Qf5 {[%clk 0:00:09]} 43. Bh6 {[%clk 0:00:02]}  Rd6 {[%clk 0:00:07]} 44. Bxf8 {[%clk 0:00:02]}  Qxf8 {[%clk 0:00:08]} 45. Nxd5 {[%clk 0:00:02]}  N6e5 {[%clk 0:00:08]} 46. Qe4 {[%clk 0:00:02]}  Qd8 {[%clk 0:00:07]} 47. b3 {[%clk 0:00:00]}  Nb6 {[%clk 0:00:04]} 0-1

[Event "December 19 Early 2023"]
[Site "https://www.chess.com"]
[Date "2023.12.19"]
[Round "4"]
[White "Ivic, Velimir"]
[Black "Hua, Lefong"]
[Result "1-0"]
[Board "28"]
[TimeControl "180+1"]
[WhiteFideId "950122"]
[BlackFideId "2602253"]
[WhiteElo "2542"]
[BlackElo "2702"]
[WhiteTeam "SRB"]
[BlackTeam "CAN"]
[WhiteClock "0:00:56"]
[BlackClock "0:00:25"]

1. e4 {[%clk 0:03:00]}  c5 {[%clk 0:02:59]} 2. Nf3 {[%clk 0:03:01]}  g6 {[%clk 0:02:58]} 3. Bc4 {[%clk 0:02:59]}  Bg7 {[%clk 0:02:57]} 4. O-O {[%clk 0:03:00]}  Nc6 {[%clk 0:02:57]} 5. d3 {[%clk 0:03:00]}  e6 {[%clk 0:02:57]} 6. c3 {[%clk 0:02:59]}  Nge7 {[%clk 0:02:58]} 7. Re1 {[%clk 0:03:00]}  O-O {[%clk 0:02:58]} 8. Bb3 {[%clk 0:03:00]}  d5 {[%clk 0:02:56]} 9. e5 {[%clk 0:03:00]}  b6 {[%clk 0:02:49]} 10. Bc2 {[%clk 0:02:57]}  d4 {[%clk 0:02:47]} 11. c4 {[%clk 0:02:55]}  Bb7 {[%clk 0:02:43]} 12. Bf4 {[%clk 0:02:56]}  Qc7 {[%clk 0:02:38]} 13. Ba4 {[%clk 0:02:46]}  h6 {[%clk 0:02:34]} 14. h3 {[%clk 0:02:36]}  g5 {[%clk 0:02:34]} 15. Bh2 {[%clk 0:02:36]}  Ng6 {[%clk 0:02:33]} 16. Bxc6 {[%clk 0:02:33]}  Qxc6 {[%clk 0:02:31]} 17. Nbd2 {[%clk 0:02:33]}  f5 {[%clk 0:02:13]} 18. exf6 {[%clk 0:02:30]}  Bxf6 {[%clk 0:02:10]} 19. Ne4 {[%clk 0:02:19]}  Bg7 {[%clk 0:02:07]} 20. a3 {[%clk 0:02:11]}  a5 {[%clk 0:01:59]} 21. Rb1 {[%clk 0:02:10]}  Nf4 {[%clk 0:01:55]} 22. b4 {[%clk 0:02:04]}  axb4 {[%clk 0:01:54]} 23. axb4 {[%clk 0:02:05]}  Ra3 {[%clk 0:01:50]} 24. Bxf4 {[%clk 0:02:05]}  Rxf4 {[%clk 0:01:50]} 25. bxc5 {[%clk 0:02:06]}  bxc5 {[%clk 0:01:50]} 26. Rb5 {[%clk 0:02:05]}  Ba6 {[%clk 0:01:10]} 27. Rb3 {[%clk 0:01:09]}  Rxb3 {[%clk 0:00:53]} 28. Qxb3 {[%clk 0:01:10]}  Rf8 {[%clk 0:00:48]} 29. Qa3 {[%clk 0:01:08]}  Bc8 {[%clk 0:00:42]} 30. Qxc5 {[%clk 0:01:01]}  Qxc5 {[%clk 0:00:41]} 31. Nxc5 {[%clk 0:01:02]}  Re8 {[%clk 0:00:38]} 32. Ne4 {[%clk 0:01:00]}  Bb7 {[%clk 0:00:33]} 33. Nd6 {[%clk 0:00:59]}  Re7 {[%clk 0:00:33]} 34. Nxb7 {[%clk 0:00:59]}  Rxb7 {[%clk 0:00:34]} 35. Rxe6 {[%clk 0:00:59]}  Rb3 {[%clk 0:00:32]} 36. Ne1 {[%clk 0:00:59]}  Rc3 {[%clk 0:00:32]} 37. Kf1 {[%clk 0:00:58]}  Kf7 {[%clk 0:00:31]} 38. Re2 {[%clk 0:00:58]}  Bf6 {[%clk 0:00:31]} 39. Rc2 {[%clk 0:00:59]}  Rb3 {[%clk 0:00:30]} 40. Ke2 {[%clk 0:01:00]}  Bd8 {[%clk 0:00:29]} 41. Nf3 {[%clk 0:01:00]}  Bf6 {[%clk 0:00:26]} 42. Nd2 {[%clk 0:01:00]}  Rc3 {[%clk 0:00:26]} 43. Rxc3 {[%clk 0:00:57]}  dxc3 {[%clk 0:00:26]} 44. Ne4 {[%clk 0:00:57]}  Bd4 {[%clk 0:00:25]} 45. Kd1 {[%clk 0:00:57]}  Ke6 {[%clk 0:00:25]} 46. Kc2 {[%clk 0:00:56]} 1-0

[Event "December 19 Early 2023"]
[Site "https://www.chess.com"]
[Date "2023.12.19"]
[Round "4"]
[White "Kukhmazov, Arsen"]
[Black "JonaszBaum"]
[Result "1-0"]
[Board "29"]
[TimeControl "180+1"]
[WhiteFideId "24108260"]
[WhiteElo "2397"]
[BlackElo "2695"]
[WhiteTeam "FID"]
[WhiteClock "0:00:12"]
[BlackClock "0:00:01"]

1. d4 {[%clk 0:03:00]}  e6 {[%clk 0:02:58]} 2. c4 {[%clk 0:03:01]}  b6 {[%clk 0:02:58]} 3. a3 {[%clk 0:02:52]}  d5 {[%clk 0:02:53]} 4. cxd5 {[%clk 0:02:45]}  exd5 {[%clk 0:02:54]} 5. Nc3 {[%clk 0:02:46]}  Nf6 {[%clk 0:02:52]} 6. Nf3 {[%clk 0:02:45]}  Be7 {[%clk 0:02:48]} 7. Bg5 {[%clk 0:02:45]}  c6 {[%clk 0:02:40]} 8. g3 {[%clk 0:02:36]}  Bf5 {[%clk 0:02:37]} 9. Bg2 {[%clk 0:02:35]}  O-O {[%clk 0:02:36]} 10. O-O {[%clk 0:02:28]}  Nbd7 {[%clk 0:02:32]} 11. Rc1 {[%clk 0:02:26]}  Rc8 {[%clk 0:02:31]} 12. Bxf6 {[%clk 0:01:50]}  Bxf6 {[%clk 0:02:24]} 13. e3 {[%clk 0:01:48]}  Re8 {[%clk 0:02:23]} 14. Qe2 {[%clk 0:01:47]}  h6 {[%clk 0:02:16]} 15. Qa6 {[%clk 0:01:46]}  Rc7 {[%clk 0:02:06]} 16. Rfd1 {[%clk 0:01:44]}  Nb8 {[%clk 0:01:44]} 17. Qa4 {[%clk 0:01:38]}  Rce7 {[%clk 0:01:42]} 18. Ne1 {[%clk 0:01:28]}  a5 {[%clk 0:01:37]} 19. Nd3 {[%clk 0:01:28]}  Bg4 {[%clk 0:01:18]} 20. Rd2 {[%clk 0:01:25]}  Qd7 {[%clk 0:01:12]} 21. Qb3 {[%clk 0:01:21]}  b5 {[%clk 0:00:55]} 22. Qc2 {[%clk 0:01:06]}  Bh3 {[%clk 0:00:46]} 23. Bh1 {[%clk 0:01:05]}  h5 {[%clk 0:00:42]} 24. Nf4 {[%clk 0:00:59]}  Bf5 {[%clk 0:00:42]} 25. Qd1 {[%clk 0:01:00]}  h4 {[%clk 0:00:42]} 26. Bf3 {[%clk 0:00:44]}  g5 {[%clk 0:00:36]} 27. Nfxd5 {[%clk 0:00:29]}  cxd5 {[%clk 0:00:32]} 28. Nxd5 {[%clk 0:00:30]}  Re6 {[%clk 0:00:24]} 29. Nc7 {[%clk 0:00:31]}  Rd6 {[%clk 0:00:14]} 30. Nxe8 {[%clk 0:00:30]}  Qxe8 {[%clk 0:00:15]} 31. Bg4 {[%clk 0:00:28]}  Bxg4 {[%clk 0:00:09]} 32. Qxg4 {[%clk 0:00:29]}  hxg3 {[%clk 0:00:06]} 33. hxg3 {[%clk 0:00:23]}  Nd7 {[%clk 0:00:06]} 34. Rdc2 {[%clk 0:00:22]}  Kg7 {[%clk 0:00:06]} 35. Kg2 {[%clk 0:00:19]}  Qe6 {[%clk 0:00:05]} 36. Qxe6 {[%clk 0:00:15]}  fxe6 {[%clk 0:00:06]} 37. Rc7 {[%clk 0:00:15]}  e5 {[%clk 0:00:03]} 38. dxe5 {[%clk 0:00:11]}  Bxe5 {[%clk 0:00:04]} 39. R1c5 {[%clk 0:00:10]}  Bxb2 {[%clk 0:00:04]} 40. Rxg5+ {[%clk 0:00:10]}  Kf6 {[%clk 0:00:05]} 41. Rxb5 {[%clk 0:00:11]}  Bxa3 {[%clk 0:00:04]} 42. Rxa5 {[%clk 0:00:11]}  Bb2 {[%clk 0:00:04]} 43. Rb5 {[%clk 0:00:11]}  Ba1 {[%clk 0:00:03]} 44. Ra7 {[%clk 0:00:11]}  Bc3 {[%clk 0:00:02]} 45. Rc7 {[%clk 0:00:11]}  Ba1 {[%clk 0:00:03]} 46. f4 {[%clk 0:00:12]}  Ke6 {[%clk 0:00:02]} 47. Kf3 {[%clk 0:00:12]}  Bf6 {[%clk 0:00:02]} 48. g4 {[%clk 0:00:12]}  Be7 {[%clk 0:00:03]} 49. g5 {[%clk 0:00:12]}  Nf8 {[%clk 0:00:02]} 50. f5+ {[%clk 0:00:12]}  Kf7 {[%clk 0:00:01]} 51. f6 {[%clk 0:00:12]}  Ng6 {[%clk 0:00:02]} 52. fxe7 {[%clk 0:00:12]}  Re6 {[%clk 0:00:01]} 53. e8=Q+ {[%clk 0:00:11]}  Kxe8 {[%clk 0:00:01]} 54. Rb8# {[%clk 0:00:12]} 1-0

[Event "December 19 Early 2023"]
[Site "https://www.chess.com"]
[Date "2023.12.19"]
[Round "4"]
[White "Khamdamova, Afruza"]
[Black "Alexandre, Anne Shopie Elizabeth"]
[Result "0-1"]
[Board "35"]
[TimeControl "180+1"]
[WhiteFideId "14210444"]
[BlackFideId "11902418"]
[WhiteElo "2295"]
[BlackElo "2830"]
[WhiteTeam "UZB"]
[BlackTeam "HAI"]
[WhiteClock "0:00:01"]
[BlackClock "0:01:59"]

1. e4 {[%clk 0:03:00]}  d6 {[%clk 0:03:00]} 2. d4 {[%clk 0:03:01]}  Nf6 {[%clk 0:03:01]} 3. Nc3 {[%clk 0:03:01]}  g6 {[%clk 0:03:01]} 4. Be3 {[%clk 0:03:01]}  c6 {[%clk 0:03:00]} 5. f3 {[%clk 0:02:58]}  b5 {[%clk 0:02:59]} 6. Qd2 {[%clk 0:02:53]}  b4 {[%clk 0:02:58]} 7. Nce2 {[%clk 0:02:52]}  a5 {[%clk 0:02:58]} 8. O-O-O {[%clk 0:02:44]}  Qc7 {[%clk 0:02:48]} 9. h4 {[%clk 0:02:40]}  h5 {[%clk 0:02:47]} 10. Nh3 {[%clk 0:02:40]}  Bxh3 {[%clk 0:02:47]} 11. Rxh3 {[%clk 0:02:40]}  Nbd7 {[%clk 0:02:48]} 12. Kb1 {[%clk 0:02:26]}  Bg7 {[%clk 0:02:44]} 13. Nc1 {[%clk 0:02:05]}  O-O {[%clk 0:02:44]} 14. Bd3 {[%clk 0:02:03]}  c5 {[%clk 0:02:44]} 15. dxc5 {[%clk 0:01:52]}  Nxc5 {[%clk 0:02:43]} 16. Rg3 {[%clk 0:00:55]}  Na4 {[%clk 0:02:28]} 17. Bd4 {[%clk 0:00:33]}  e5 {[%clk 0:02:28]} 18. Be3 {[%clk 0:00:25]}  d5 {[%clk 0:02:27]} 19. Bh6 {[%clk 0:00:20]}  dxe4 {[%clk 0:02:21]} 20. Bxg7 {[%clk 0:00:18]}  Kxg7 {[%clk 0:02:20]} 21. Bxe4 {[%clk 0:00:18]}  Rad8 {[%clk 0:02:17]} 22. Qe1 {[%clk 0:00:17]}  Rxd1 {[%clk 0:02:16]} 23. Qxd1 {[%clk 0:00:17]}  Rd8 {[%clk 0:02:14]} 24. Qe2 {[%clk 0:00:16]}  Nc5 {[%clk 0:02:03]} 25. Bd3 {[%clk 0:00:15]}  e4 {[%clk 0:02:02]} 26. Rg5 {[%clk 0:00:05]}  exd3 {[%clk 0:02:01]} 27. cxd3 {[%clk 0:00:05]}  Ne6 {[%clk 0:02:00]} 28. Rb5 {[%clk 0:00:01]}  Nd4 {[%clk 0:01:59]} 0-1